[Event "Late-Titled-Tuesday-Blitz-March-05-2024"]
[Site "Chess.com"]
[Date "2024.03.05"]
[Round "3"]
[White "ozates"]
[Black "ContrVersia"]
[Result "0-1"]
[WhiteElo "2595"]
[BlackElo "2866"]
[TimeControl "180+1"]
[EndTime "14:29:07 PST"]
[Termination "ContrVersia won by resignation"]

1. e4 {[%clk 0:03:00.9]} 1... c5 {[%clk 0:02:59.5]} 2. Nf3 {[%clk 0:02:58.6]}
2... d6 {[%clk 0:02:59.7]} 3. Bb5+ {[%clk 0:02:58.5]} 3... Nd7 {[%clk
0:02:59.7]} 4. O-O {[%clk 0:02:58]} 4... a6 {[%clk 0:02:58.9]} 5. Bd3 {[%clk
0:02:58.5]} 5... Ngf6 {[%clk 0:02:58.5]} 6. Re1 {[%clk 0:02:59.1]} 6... e6
{[%clk 0:02:57.8]} 7. c3 {[%clk 0:02:59]} 7... b5 {[%clk 0:02:58.2]} 8. Bc2
{[%clk 0:02:59.1]} 8... Bb7 {[%clk 0:02:58.7]} 9. d4 {[%clk 0:02:58.8]} 9... Be7
{[%clk 0:02:59.2]} 10. Nbd2 {[%clk 0:02:58.6]} 10... Qc7 {[%clk 0:02:59.4]} 11.
h3 {[%clk 0:02:57.7]} 11... e5 {[%clk 0:02:52.9]} 12. dxe5 {[%clk 0:02:54.7]}
12... dxe5 {[%clk 0:02:52.7]} 13. Nf1 {[%clk 0:02:51.4]} 13... O-O {[%clk
0:02:51.3]} 14. Ne3 {[%clk 0:02:46.4]} 14... Rfd8 {[%clk 0:02:51.2]} 15. Nf5
{[%clk 0:02:45]} 15... Bf8 {[%clk 0:02:51.1]} 16. Bg5 {[%clk 0:02:44.1]} 16...
h6 {[%clk 0:02:44.9]} 17. Bh4 {[%clk 0:02:44.2]} 17... g6 {[%clk 0:02:43.7]} 18.
Ne3 {[%clk 0:02:38.1]} 18... Re8 {[%clk 0:02:41.8]} 19. Nd5 {[%clk 0:02:15.2]}
19... Qc6 {[%clk 0:02:28.9]} 20. c4 {[%clk 0:01:53.2]} 20... Bg7 {[%clk
0:02:21.8]} 21. Bb3 {[%clk 0:01:44.3]} 21... Nxd5 {[%clk 0:02:19.8]} 22. exd5
{[%clk 0:01:39.6]} 22... Qd6 {[%clk 0:02:13.8]} 23. Nd2 {[%clk 0:01:39.7]} 23...
f5 {[%clk 0:02:13.7]} 24. f3 {[%clk 0:01:35.8]} 24... b4 {[%clk 0:02:05]} 25.
Bc2 {[%clk 0:01:29.4]} 25... Nf6 {[%clk 0:01:55.9]} 26. Bg3 {[%clk 0:01:26.6]}
26... Nh5 {[%clk 0:01:55.3]} 27. Bh2 {[%clk 0:01:25.7]} 27... Re7 {[%clk
0:01:46.7]} 28. Qe2 {[%clk 0:01:23.9]} 28... Rae8 {[%clk 0:01:46.1]} 29. Qf2
{[%clk 0:01:23.7]} 29... Nf4 {[%clk 0:01:36.8]} 30. Re3 {[%clk 0:01:03.1]} 30...
Bc8 {[%clk 0:01:32.7]} 31. Rae1 {[%clk 0:01:01.6]} 31... Bd7 {[%clk 0:01:32.4]}
32. Nb3 {[%clk 0:00:55]} 32... g5 {[%clk 0:01:32.5]} 33. Bxf4 {[%clk 0:00:50.3]}
33... gxf4 {[%clk 0:01:32.3]} 34. R3e2 {[%clk 0:00:47.9]} 34... Rc8 {[%clk
0:01:32.5]} 35. Qh4 {[%clk 0:00:44.6]} 35... Bf6 {[%clk 0:01:28.1]} 36. Qh5
{[%clk 0:00:44]} 36... Rg7 {[%clk 0:01:20.7]} 37. Qxh6 {[%clk 0:00:39.2]} 37...
e4 {[%clk 0:01:02]} 38. Kh1 {[%clk 0:00:31.4]} 38... e3 {[%clk 0:00:30.1]} 39.
Nc1 {[%clk 0:00:23.6]} 39... Rh7 {[%clk 0:00:16.8]} 40. Qg6+ {[%clk 0:00:22.9]}
40... Kh8 {[%clk 0:00:17.4]} 41. Bxf5 {[%clk 0:00:19.9]} 41... Bxf5 {[%clk
0:00:16.6]} 42. Qxf5 {[%clk 0:00:20.8]} 42... Rf8 {[%clk 0:00:17.1]} 43. Qe6
{[%clk 0:00:10.1]} 43... Qxe6 {[%clk 0:00:17.2]} 44. dxe6 {[%clk 0:00:11]} 44...
Rd8 {[%clk 0:00:18]} 45. Nb3 {[%clk 0:00:10.2]} 45... Rh5 {[%clk 0:00:18.4]} 46.
Na5 {[%clk 0:00:08.6]} 46... Rd6 {[%clk 0:00:16.1]} 47. a3 {[%clk 0:00:07.2]}
47... bxa3 {[%clk 0:00:15.7]} 48. bxa3 {[%clk 0:00:08.1]} 48... Bc3 {[%clk
0:00:15.9]} 49. Nb7 {[%clk 0:00:06.5]} 49... Rb6 {[%clk 0:00:13.5]} 50. Nxc5
{[%clk 0:00:05.8]} 50... Rxc5 {[%clk 0:00:12.9]} 51. e7 {[%clk 0:00:06.4]} 51...
Re5 {[%clk 0:00:13.2]} 52. Rc1 {[%clk 0:00:06.3]} 52... Bd4 {[%clk 0:00:11.5]}
53. Rd1 {[%clk 0:00:06.6]} 53... Rd6 {[%clk 0:00:09.4]} 54. c5 {[%clk
0:00:06.2]} 54... Bxc5 {[%clk 0:00:09.8]} 55. Rc1 {[%clk 0:00:05.7]} 55... Rdd5
{[%clk 0:00:08.8]} 56. Rec2 {[%clk 0:00:02.4]} 56... Bxe7 {[%clk 0:00:09]} 57.
Rc8+ {[%clk 0:00:02.2]} 57... Kg7 {[%clk 0:00:09.3]} 58. R8c4 {[%clk 0:00:03]}
58... e2 {[%clk 0:00:09]} 59. Re1 {[%clk 0:00:03.6]} 59... Rd1 {[%clk
0:00:09.1]} 0-1

[Event "Late-Titled-Tuesday-Blitz-March-05-2024"]
[Site "Chess.com"]
[Date "2024.03.05"]
[Round "3"]
[White "PepeCuenca"]
[Black "Eliwood44"]
[Result "0-1"]
[WhiteElo "2700"]
[BlackElo "2519"]
[TimeControl "180+1"]
[EndTime "14:29:07 PST"]
[Termination "Eliwood44 won on time"]

1. d4 {[%clk 0:03:00.9]} 1... Nf6 {[%clk 0:02:53]} 2. Bf4 {[%clk 0:03:00.7]}
2... e6 {[%clk 0:02:50.4]} 3. e3 {[%clk 0:03:00.2]} 3... d5 {[%clk 0:02:48.5]}
4. Nf3 {[%clk 0:02:59.8]} 4... Bd6 {[%clk 0:02:44.3]} 5. Ne5 {[%clk 0:02:59.7]}
5... c5 {[%clk 0:02:43.5]} 6. Bb5+ {[%clk 0:02:59.3]} 6... Ke7 {[%clk
0:02:21.3]} 7. O-O {[%clk 0:02:58.5]} 7... c4 {[%clk 0:02:19.1]} 8. Ba4 {[%clk
0:02:01.3]} 8... Bd7 {[%clk 0:02:12.4]} 9. Bxd7 {[%clk 0:01:54]} 9... Nbxd7
{[%clk 0:02:04.2]} 10. Nxf7 {[%clk 0:01:51.9]} 10... Kxf7 {[%clk 0:02:04.8]} 11.
Bxd6 {[%clk 0:01:52]} 11... Qb6 {[%clk 0:01:59.5]} 12. Ba3 {[%clk 0:01:50.4]}
12... h5 {[%clk 0:01:54.5]} 13. Nd2 {[%clk 0:01:49.2]} 13... h4 {[%clk
0:01:51.8]} 14. h3 {[%clk 0:01:48.9]} 14... Rh6 {[%clk 0:01:51.8]} 15. Nf3
{[%clk 0:01:48]} 15... Rah8 {[%clk 0:01:49.6]} 16. b3 {[%clk 0:01:42.5]} 16...
c3 {[%clk 0:01:44.9]} 17. Ng5+ {[%clk 0:01:19]} 17... Kg8 {[%clk 0:01:43.8]} 18.
Qe1 {[%clk 0:01:08.2]} 18... Rg6 {[%clk 0:01:42.2]} 19. f4 {[%clk 0:01:08.1]}
19... Qa5 {[%clk 0:01:35.7]} 20. Be7 {[%clk 0:01:03.8]} 20... Ne4 {[%clk
0:01:32.6]} 21. Nxe4 {[%clk 0:01:01.1]} 21... dxe4 {[%clk 0:01:33.5]} 22. Bxh4
{[%clk 0:01:00.8]} 22... Qh5 {[%clk 0:01:30.9]} 23. Bg3 {[%clk 0:00:54]} 23...
Nf6 {[%clk 0:01:18]} 24. Kh1 {[%clk 0:00:50.6]} 24... Nd5 {[%clk 0:01:11.3]} 25.
Bh2 {[%clk 0:00:45.8]} 25... Ne7 {[%clk 0:01:09.7]} 26. Rg1 {[%clk 0:00:25.5]}
26... Nf5 {[%clk 0:01:07.3]} 27. Qf2 {[%clk 0:00:17.7]} 27... Rgh6 {[%clk
0:00:58.4]} 28. a4 {[%clk 0:00:15.3]} 28... Qf7 {[%clk 0:00:55.7]} 29. b4 {[%clk
0:00:14]} 29... Rh4 {[%clk 0:00:55.4]} 30. Ra3 {[%clk 0:00:13.1]} 30... Qc7
{[%clk 0:00:52.1]} 31. Qe1 {[%clk 0:00:12.9]} 31... R8h5 {[%clk 0:00:46.8]} 32.
Qxc3 {[%clk 0:00:07.4]} 32... Qf7 {[%clk 0:00:44.8]} 33. Qe1 {[%clk 0:00:06.7]}
33... Qg6 {[%clk 0:00:42.9]} 34. Qf2 {[%clk 0:00:03.9]} 34... Qh6 {[%clk
0:00:41.6]} 35. c4 {[%clk 0:00:03.4]} 35... Kh7 {[%clk 0:00:36.1]} 36. c5 {[%clk
0:00:03.9]} 36... g5 {[%clk 0:00:36.2]} 37. fxg5 {[%clk 0:00:03.7]} 37... Rxg5
{[%clk 0:00:37.1]} 38. b5 {[%clk 0:00:03.1]} 38... Qg6 {[%clk 0:00:32.4]} 39. g4
{[%clk 0:00:02.7]} 39... Rxh3 {[%clk 0:00:17.7]} 40. gxf5 {[%clk 0:00:02.3]}
40... Rxg1+ {[%clk 0:00:17.8]} 41. Qxg1 {[%clk 0:00:03.2]} 41... Qxf5 {[%clk
0:00:18.1]} 42. Qg2 {[%clk 0:00:03.1]} 42... Rf3 {[%clk 0:00:13.5]} 43. Ra1
{[%clk 0:00:03.5]} 43... Rf2 {[%clk 0:00:13.9]} 44. Qg3 {[%clk 0:00:03.8]} 44...
Rf3 {[%clk 0:00:10.4]} 45. Qh4+ {[%clk 0:00:04.2]} 45... Kg8 {[%clk 0:00:09.8]}
46. Rg1+ {[%clk 0:00:04.7]} 46... Kf7 {[%clk 0:00:10]} 47. Bf4 {[%clk
0:00:03.8]} 47... Rh3+ {[%clk 0:00:09.2]} 48. Qxh3 {[%clk 0:00:03]} 48... Qxh3+
{[%clk 0:00:10.1]} 49. Bh2 {[%clk 0:00:03.5]} 49... Qf3+ {[%clk 0:00:10.5]} 50.
Rg2 {[%clk 0:00:04.1]} 50... Qxe3 {[%clk 0:00:10.4]} 51. Be5 {[%clk 0:00:04.1]}
51... Qh3+ {[%clk 0:00:09.8]} 52. Kg1 {[%clk 0:00:04.2]} 52... Qe3+ {[%clk
0:00:08.7]} 53. Rf2+ {[%clk 0:00:04.1]} 53... Ke7 {[%clk 0:00:08.2]} 54. Kg2
{[%clk 0:00:03.8]} 54... Qg5+ {[%clk 0:00:07.2]} 55. Kf1 {[%clk 0:00:04.3]}
55... Qg4 {[%clk 0:00:07.4]} 56. Ke1 {[%clk 0:00:03.2]} 56... e3 {[%clk
0:00:07.3]} 57. Rf7+ {[%clk 0:00:02.4]} 57... Kxf7 {[%clk 0:00:07.2]} 0-1

[Event "Late-Titled-Tuesday-Blitz-March-05-2024"]
[Site "Chess.com"]
[Date "2024.03.05"]
[Round "3"]
[White "Qvalda"]
[Black "Kgutierrez95"]
[Result "1-0"]
[WhiteElo "2436"]
[BlackElo "2206"]
[TimeControl "180+1"]
[EndTime "14:29:07 PST"]
[Termination "Qvalda won by resignation"]

1. d4 {[%clk 0:02:58.9]} 1... d5 {[%clk 0:02:59.1]} 2. c4 {[%clk 0:02:55.1]}
2... c6 {[%clk 0:02:55.7]} 3. cxd5 {[%clk 0:02:54.5]} 3... cxd5 {[%clk
0:02:55.5]} 4. Nc3 {[%clk 0:02:55.4]} 4... Nf6 {[%clk 0:02:53.7]} 5. Bf4 {[%clk
0:02:55.9]} 5... e6 {[%clk 0:02:44.5]} 6. e3 {[%clk 0:02:51.4]} 6... Bd7 {[%clk
0:02:40.1]} 7. Rc1 {[%clk 0:02:49.6]} 7... Be7 {[%clk 0:02:39.7]} 8. Nf3 {[%clk
0:02:49.2]} 8... O-O {[%clk 0:02:39.1]} 9. Bd3 {[%clk 0:02:49.5]} 9... Nc6
{[%clk 0:02:38.6]} 10. h3 {[%clk 0:02:47.8]} 10... a6 {[%clk 0:02:35.1]} 11. O-O
{[%clk 0:02:47.4]} 11... b5 {[%clk 0:02:34.1]} 12. Bb1 {[%clk 0:02:46.3]} 12...
Re8 {[%clk 0:02:26.3]} 13. Ne5 {[%clk 0:02:45.8]} 13... Rc8 {[%clk 0:02:18.7]}
14. g4 {[%clk 0:02:38.4]} 14... Bf8 {[%clk 0:02:15.5]} 15. g5 {[%clk 0:02:38]}
15... Nh5 {[%clk 0:02:14.5]} 16. Qxh5 {[%clk 0:02:36.5]} 16... g6 {[%clk
0:02:14.3]} 17. Qh4 {[%clk 0:02:34.1]} 17... Nxe5 {[%clk 0:02:13.2]} 18. Bxe5
{[%clk 0:02:32.2]} 18... b4 {[%clk 0:02:05.6]} 19. Bf6 {[%clk 0:02:30.9]} 19...
Qa5 {[%clk 0:02:00.1]} 20. Ne2 {[%clk 0:02:20]} 20... Bb5 {[%clk 0:01:58.1]} 21.
Qg4 {[%clk 0:02:00.2]} 21... b3 {[%clk 0:01:51.9]} 22. axb3 {[%clk 0:01:45.1]}
22... Qd2 {[%clk 0:01:46.9]} 23. Rce1 {[%clk 0:00:14]} 23... Qxb2 {[%clk
0:01:12.6]} 24. Kg2 {[%clk 0:00:12.9]} 24... Bb4 {[%clk 0:00:56.8]} 25. Rg1
{[%clk 0:00:12.1]} 25... Bxe1 {[%clk 0:00:46.4]} 26. Rxe1 {[%clk 0:00:13]} 26...
Bxe2 {[%clk 0:00:35.9]} 27. Qxe2 {[%clk 0:00:11.4]} 27... Qxe2 {[%clk
0:00:33.4]} 28. Rxe2 {[%clk 0:00:12.3]} 28... Rc1 {[%clk 0:00:32.9]} 29. Bd3
{[%clk 0:00:11.9]} 29... a5 {[%clk 0:00:30.3]} 30. Ra2 {[%clk 0:00:11.5]} 30...
Ra8 {[%clk 0:00:28.6]} 31. b4 {[%clk 0:00:11.6]} 31... a4 {[%clk 0:00:27.5]} 32.
b5 {[%clk 0:00:09.9]} 32... Rc3 {[%clk 0:00:23.9]} 33. Bf1 {[%clk 0:00:09.4]}
33... Rb3 {[%clk 0:00:22.8]} 34. Be7 {[%clk 0:00:08.2]} 34... h6 {[%clk
0:00:19.5]} 35. gxh6 {[%clk 0:00:07.6]} 35... Kh7 {[%clk 0:00:19.1]} 36. Bc5
{[%clk 0:00:08.1]} 36... Kxh6 {[%clk 0:00:18.4]} 37. b6 {[%clk 0:00:08.6]} 37...
Kg7 {[%clk 0:00:15.9]} 38. Be2 {[%clk 0:00:08.7]} 38... Kf6 {[%clk 0:00:15.2]}
39. Bd1 {[%clk 0:00:08.8]} 39... Rb5 {[%clk 0:00:12.4]} 40. Rxa4 {[%clk
0:00:08.5]} 40... Rxa4 {[%clk 0:00:09.8]} 41. Bxa4 {[%clk 0:00:09.4]} 41... Rb1
{[%clk 0:00:09.6]} 42. Bc6 {[%clk 0:00:09.3]} 42... e5 {[%clk 0:00:08.4]} 43. b7
{[%clk 0:00:08.9]} 43... Ke6 {[%clk 0:00:06.6]} 44. Ba7 {[%clk 0:00:08.5]} 44...
Kd6 {[%clk 0:00:06.2]} 45. b8=Q+ {[%clk 0:00:08.7]} 45... Rxb8 {[%clk
0:00:05.4]} 46. Bxb8+ {[%clk 0:00:09]} 46... Kxc6 {[%clk 0:00:05.2]} 47. Bxe5
{[%clk 0:00:09.5]} 47... Kd7 {[%clk 0:00:04.7]} 48. Kg3 {[%clk 0:00:09.8]} 48...
Ke6 {[%clk 0:00:05.6]} 49. Bb8 {[%clk 0:00:08.5]} 49... f6 {[%clk 0:00:06.5]}
50. Ba7 {[%clk 0:00:09]} 50... f5 {[%clk 0:00:06.8]} 51. Bc5 {[%clk 0:00:09.9]}
51... g5 {[%clk 0:00:07]} 52. h4 {[%clk 0:00:10.1]} 52... gxh4+ {[%clk
0:00:06.9]} 53. Kxh4 {[%clk 0:00:10.3]} 53... Kf6 {[%clk 0:00:07.8]} 54. Kg3
{[%clk 0:00:10.5]} 54... Kg6 {[%clk 0:00:08.7]} 55. Kf4 {[%clk 0:00:10.5]} 55...
Kf6 {[%clk 0:00:09]} 56. Ba3 {[%clk 0:00:10.3]} 56... Ke6 {[%clk 0:00:09.9]} 57.
Kg5 {[%clk 0:00:10.4]} 57... f4 {[%clk 0:00:08]} 58. Kxf4 {[%clk 0:00:10.5]} 1-0

[Event "Late-Titled-Tuesday-Blitz-March-05-2024"]
[Site "Chess.com"]
[Date "2024.03.05"]
[Round "3"]
[White "chucksterf10"]
[Black "GiorgianBarbosa"]
[Result "1/2-1/2"]
[WhiteElo "2567"]
[BlackElo "2426"]
[TimeControl "180+1"]
[EndTime "14:29:08 PST"]
[Termination "Game drawn by repetition"]

1. h3 {[%clk 0:03:00.4]} 1... d5 {[%clk 0:02:54.9]} 2. Nf3 {[%clk 0:02:59.4]}
2... c5 {[%clk 0:02:54]} 3. e3 {[%clk 0:02:59.8]} 3... Nc6 {[%clk 0:02:54.4]} 4.
Bb5 {[%clk 0:02:59.9]} 4... Nf6 {[%clk 0:02:53.9]} 5. O-O {[%clk 0:02:59]} 5...
Bd7 {[%clk 0:02:53.6]} 6. b3 {[%clk 0:02:57.6]} 6... g6 {[%clk 0:02:52]} 7. Bb2
{[%clk 0:02:56.3]} 7... Bg7 {[%clk 0:02:52.9]} 8. d4 {[%clk 0:02:54.5]} 8... Ne4
{[%clk 0:02:50]} 9. Nbd2 {[%clk 0:02:53.5]} 9... O-O {[%clk 0:02:48.9]} 10. Nxe4
{[%clk 0:02:52.8]} 10... dxe4 {[%clk 0:02:49]} 11. Nd2 {[%clk 0:02:53.6]} 11...
cxd4 {[%clk 0:02:48.6]} 12. Nxe4 {[%clk 0:02:49.3]} 12... dxe3 {[%clk 0:02:47]}
13. Bxg7 {[%clk 0:02:49.9]} 13... exf2+ {[%clk 0:02:46.4]} 14. Rxf2 {[%clk
0:02:50.8]} 14... Kxg7 {[%clk 0:02:46.9]} 15. Nc5 {[%clk 0:02:51.1]} 15... Bf5
{[%clk 0:02:41.4]} 16. Nxb7 {[%clk 0:02:47.6]} 16... Qb6 {[%clk 0:02:40]} 17.
Bxc6 {[%clk 0:02:47.6]} 17... Qxc6 {[%clk 0:02:36.8]} 18. Qd4+ {[%clk
0:02:48.2]} 18... Kg8 {[%clk 0:02:34.2]} 19. Na5 {[%clk 0:02:48.4]} 19... Qc7
{[%clk 0:02:21.4]} 20. Nc4 {[%clk 0:02:47]} 20... Rad8 {[%clk 0:02:18.9]} 21.
Qe5 {[%clk 0:02:47.3]} 21... Qxe5 {[%clk 0:02:12.9]} 22. Nxe5 {[%clk 0:02:48.2]}
22... f6 {[%clk 0:02:09.7]} 23. Nc6 {[%clk 0:02:48.2]} 23... Rd7 {[%clk
0:02:09.7]} 24. c4 {[%clk 0:02:45.4]} 24... e5 {[%clk 0:02:07.4]} 25. Raf1
{[%clk 0:02:39.2]} 25... Kg7 {[%clk 0:02:05.6]} 26. g4 {[%clk 0:02:38.1]} 26...
Be4 {[%clk 0:02:05]} 27. Nxe5 {[%clk 0:02:37]} 27... Re7 {[%clk 0:01:55.5]} 28.
Nf3 {[%clk 0:02:36.1]} 28... Rd8 {[%clk 0:01:45.2]} 29. Re1 {[%clk 0:02:27.6]}
29... Rd3 {[%clk 0:01:33.1]} 30. Nd2 {[%clk 0:02:20.6]} 30... f5 {[%clk
0:01:26.8]} 31. gxf5 {[%clk 0:02:19.6]} 31... gxf5 {[%clk 0:01:27.7]} 32. Kh2
{[%clk 0:02:18.1]} 32... Kg6 {[%clk 0:01:20.1]} 33. Rfe2 {[%clk 0:02:13.2]}
33... Rd4 {[%clk 0:01:14.2]} 34. Kg3 {[%clk 0:02:13.2]} 34... Kf6 {[%clk
0:01:09]} 35. Nxe4+ {[%clk 0:02:12.7]} 35... fxe4 {[%clk 0:01:08.9]} 36. Kf4
{[%clk 0:02:13.1]} 36... e3+ {[%clk 0:00:52.8]} 37. Kf3 {[%clk 0:02:13.4]} 37...
Rh4 {[%clk 0:00:52.7]} 38. Kg3 {[%clk 0:02:14]} 38... Rhe4 {[%clk 0:00:51.4]}
39. Kf3 {[%clk 0:02:14.3]} 39... Rh4 {[%clk 0:00:50.9]} 40. Rxe3 {[%clk
0:02:14.2]} 40... Rxh3+ {[%clk 0:00:50]} 41. Kf4 {[%clk 0:02:14.8]} 41... Rexe3
{[%clk 0:00:36.3]} 42. Rxe3 {[%clk 0:02:15.7]} 42... Rh2 {[%clk 0:00:37.2]} 43.
a4 {[%clk 0:02:15.6]} 43... h5 {[%clk 0:00:36.2]} 44. c5 {[%clk 0:02:15.4]}
44... Rc2 {[%clk 0:00:35.2]} 45. b4 {[%clk 0:02:15.4]} 45... h4 {[%clk
0:00:33.1]} 46. a5 {[%clk 0:02:02.4]} 46... a6 {[%clk 0:00:24.4]} 47. Rb3 {[%clk
0:01:52.2]} 47... h3 {[%clk 0:00:18]} 48. Kg3 {[%clk 0:01:46.5]} 48... h2 {[%clk
0:00:18.9]} 49. Rb1 {[%clk 0:01:47.1]} 49... Ke5 {[%clk 0:00:17.7]} 50. Rh1
{[%clk 0:01:44.8]} 50... Rb2 {[%clk 0:00:15.9]} 51. Rxh2 {[%clk 0:01:42.4]}
51... Rb3+ {[%clk 0:00:15.5]} 52. Kf2 {[%clk 0:01:41.7]} 52... Rxb4 {[%clk
0:00:15.2]} 53. Rh6 {[%clk 0:01:41.6]} 53... Kd5 {[%clk 0:00:14.3]} 54. Rh5+
{[%clk 0:01:38.2]} 54... Kc6 {[%clk 0:00:13.9]} 55. Ke3 {[%clk 0:01:39.1]} 55...
Ra4 {[%clk 0:00:12.7]} 56. Kd3 {[%clk 0:01:38.2]} 56... Rxa5 {[%clk 0:00:12.7]}
57. Kc4 {[%clk 0:01:38.9]} 57... Ra4+ {[%clk 0:00:13.2]} 58. Kb3 {[%clk
0:01:39.5]} 58... Rg4 {[%clk 0:00:13.4]} 59. Rf5 {[%clk 0:01:39.6]} 59... a5
{[%clk 0:00:13.5]} 60. Ka3 {[%clk 0:01:39.4]} 60... a4 {[%clk 0:00:13.3]} 61.
Rh5 {[%clk 0:01:40.1]} 61... Kb5 {[%clk 0:00:13.4]} 62. Rf5 {[%clk 0:01:39.5]}
62... Rg3+ {[%clk 0:00:13]} 63. Ka2 {[%clk 0:01:40]} 63... a3 {[%clk 0:00:13]}
64. Rh5 {[%clk 0:01:39.8]} 64... Kb4 {[%clk 0:00:12.8]} 65. c6 {[%clk
0:01:38.8]} 65... Rg2+ {[%clk 0:00:11.8]} 66. Kb1 {[%clk 0:01:39.3]} 66... a2+
{[%clk 0:00:10.7]} 67. Ka1 {[%clk 0:01:38.9]} 67... Rc2 {[%clk 0:00:10.9]} 68.
Rh4+ {[%clk 0:01:34.4]} 68... Kb3 {[%clk 0:00:10.9]} 69. Rh3+ {[%clk 0:01:34.7]}
69... Kb4 {[%clk 0:00:11.3]} 70. Rh6 {[%clk 0:01:33.5]} 70... Kb3 {[%clk
0:00:10.6]} 71. Rh3+ {[%clk 0:01:31.2]} 71... Kb4 {[%clk 0:00:10.7]} 72. Rh1
{[%clk 0:01:30.6]} 72... Rxc6 {[%clk 0:00:09.6]} 73. Kxa2 {[%clk 0:01:31.5]}
73... Rc2+ {[%clk 0:00:10]} 74. Kb1 {[%clk 0:01:32.1]} 74... Rg2 {[%clk
0:00:10.4]} 75. Rh3 {[%clk 0:01:31.5]} 75... Kc4 {[%clk 0:00:10.6]} 76. Kc1
{[%clk 0:01:31.9]} 76... Kd4 {[%clk 0:00:11]} 77. Kd1 {[%clk 0:01:32.7]} 77...
Ke4 {[%clk 0:00:11.4]} 78. Ke1 {[%clk 0:01:33.6]} 78... Ra2 {[%clk 0:00:11.8]}
79. Rb3 {[%clk 0:01:33.7]} 79... Kd4 {[%clk 0:00:12]} 80. Rf3 {[%clk 0:01:33.6]}
80... Ke4 {[%clk 0:00:12.1]} 81. Rg3 {[%clk 0:01:34.1]} 81... Kd4 {[%clk
0:00:10.2]} 82. Kd1 {[%clk 0:01:34.2]} 82... Ke4 {[%clk 0:00:10.2]} 83. Rh3
{[%clk 0:01:34.7]} 83... Rg2 {[%clk 0:00:10.3]} 84. Ke1 {[%clk 0:01:34.9]} 84...
Ra2 {[%clk 0:00:09.9]} 85. Rb3 {[%clk 0:01:35.5]} 85... Kf4 {[%clk 0:00:10]} 86.
Kf1 {[%clk 0:01:35.7]} 86... Ke4 {[%clk 0:00:08]} 87. Rb4+ {[%clk 0:01:36.6]}
87... Kf3 {[%clk 0:00:07]} 88. Ke1 {[%clk 0:01:36.9]} 88... Ke3 {[%clk 0:00:07]}
89. Kd1 {[%clk 0:01:37.5]} 89... Kd3 {[%clk 0:00:07.2]} 90. Ke1 {[%clk
0:01:34.8]} 90... Re2+ {[%clk 0:00:05.9]} 91. Kf1 {[%clk 0:01:35]} 91... Ra2
{[%clk 0:00:06.8]} 92. Rb3+ {[%clk 0:01:35.3]} 92... Kc4 {[%clk 0:00:05.7]} 93.
Rh3 {[%clk 0:01:36.2]} 93... Kd4 {[%clk 0:00:06.2]} 94. Ke1 {[%clk 0:01:37]}
94... Ke4 {[%clk 0:00:06.6]} 1/2-1/2

[Event "Late-Titled-Tuesday-Blitz-March-05-2024"]
[Site "Chess.com"]
[Date "2024.03.05"]
[Round "3"]
[White "KNVB"]
[Black "Bilan_Danila"]
[Result "1-0"]
[WhiteElo "2811"]
[BlackElo "2549"]
[TimeControl "180+1"]
[EndTime "14:29:09 PST"]
[Termination "KNVB won by resignation"]

1. d4 {[%clk 0:02:55.4]} 1... d5 {[%clk 0:02:58.3]} 2. Bf4 {[%clk 0:02:55.8]}
2... Nf6 {[%clk 0:02:58.6]} 3. e3 {[%clk 0:02:55.6]} 3... c5 {[%clk 0:02:58.8]}
4. c3 {[%clk 0:02:55.8]} 4... Nc6 {[%clk 0:02:58]} 5. Nd2 {[%clk 0:02:55.2]}
5... cxd4 {[%clk 0:02:58.1]} 6. exd4 {[%clk 0:02:56.1]} 6... Bf5 {[%clk
0:02:56.5]} 7. Qb3 {[%clk 0:02:54.5]} 7... Qc8 {[%clk 0:02:56.6]} 8. Ngf3 {[%clk
0:02:54.3]} 8... e6 {[%clk 0:02:55.7]} 9. Be2 {[%clk 0:02:53.5]} 9... Be7 {[%clk
0:02:55.8]} 10. O-O {[%clk 0:02:53.9]} 10... O-O {[%clk 0:02:54.9]} 11. a4
{[%clk 0:02:52.5]} 11... Na5 {[%clk 0:02:32.7]} 12. Qd1 {[%clk 0:02:51.1]} 12...
a6 {[%clk 0:02:24.7]} 13. Re1 {[%clk 0:02:34.8]} 13... Nc4 {[%clk 0:02:19.2]}
14. Nxc4 {[%clk 0:02:13.7]} 14... dxc4 {[%clk 0:02:20.1]} 15. a5 {[%clk
0:02:14.5]} 15... Be4 {[%clk 0:01:53.7]} 16. Ne5 {[%clk 0:02:09.3]} 16... Bd5
{[%clk 0:01:49.5]} 17. Bg3 {[%clk 0:00:28.5]} 17... Nd7 {[%clk 0:01:24.6]} 18.
Bf3 {[%clk 0:00:15.4]} 18... Nxe5 {[%clk 0:01:09.7]} 19. Rxe5 {[%clk 0:00:16.3]}
19... Bd6 {[%clk 0:00:46.5]} 20. Rxd5 {[%clk 0:00:13.3]} 20... Bxg3 {[%clk
0:00:41.8]} 21. Rc5 {[%clk 0:00:13.7]} 21... Bc7 {[%clk 0:00:39.8]} 22. Qe2
{[%clk 0:00:08.1]} 22... Rb8 {[%clk 0:00:25.6]} 23. Qxc4 {[%clk 0:00:06.8]}
23... Bxh2+ {[%clk 0:00:21.6]} 24. Kxh2 {[%clk 0:00:06.3]} 24... Qd7 {[%clk
0:00:22.5]} 25. Re1 {[%clk 0:00:03.9]} 25... b5 {[%clk 0:00:18.9]} 26. axb6
{[%clk 0:00:03.8]} 26... Rxb6 {[%clk 0:00:18.7]} 27. b4 {[%clk 0:00:04.1]} 27...
g6 {[%clk 0:00:17.8]} 28. g3 {[%clk 0:00:04.3]} 28... h5 {[%clk 0:00:16.3]} 29.
Kg2 {[%clk 0:00:04.5]} 29... Rd8 {[%clk 0:00:12.8]} 30. Rg5 {[%clk 0:00:02.4]}
30... Qe7 {[%clk 0:00:12.7]} 31. Qc5 {[%clk 0:00:02.5]} 31... Rbd6 {[%clk
0:00:12.2]} 32. Bxh5 {[%clk 0:00:02.1]} 32... Kh7 {[%clk 0:00:11.9]} 33. Bf3
{[%clk 0:00:02.4]} 33... Qf6 {[%clk 0:00:12.3]} 34. Rh1+ {[%clk 0:00:02.7]}
34... Kg7 {[%clk 0:00:12.6]} 35. Qe5 {[%clk 0:00:03.5]} 35... Qxe5 {[%clk
0:00:13]} 36. Rxe5 {[%clk 0:00:04.4]} 36... Rc8 {[%clk 0:00:13.6]} 37. Rc5
{[%clk 0:00:05]} 37... Rb8 {[%clk 0:00:13.7]} 38. Ra1 {[%clk 0:00:05.4]} 38...
f6 {[%clk 0:00:13]} 39. Rca5 {[%clk 0:00:04.6]} 39... Rc8 {[%clk 0:00:12.6]} 40.
Rc5 {[%clk 0:00:04.4]} 40... Rb8 {[%clk 0:00:12.6]} 41. Rc6 {[%clk 0:00:03.5]}
41... Rxc6 {[%clk 0:00:12.3]} 42. Bxc6 {[%clk 0:00:04.4]} 42... Rc8 {[%clk
0:00:13]} 43. Rxa6 {[%clk 0:00:04.4]} 43... g5 {[%clk 0:00:12.4]} 44. b5 {[%clk
0:00:04.7]} 44... g4 {[%clk 0:00:13]} 45. b6 {[%clk 0:00:04.2]} 45... Rxc6
{[%clk 0:00:13.4]} 46. b7 {[%clk 0:00:04.8]} 46... Rxa6 {[%clk 0:00:14]} 47.
b8=Q {[%clk 0:00:05.5]} 47... Kg6 {[%clk 0:00:11.1]} 48. Qg8+ {[%clk 0:00:05]}
48... Kf5 {[%clk 0:00:11.5]} 49. Qh7+ {[%clk 0:00:04.8]} 49... Kg5 {[%clk
0:00:12.1]} 50. Qd3 {[%clk 0:00:04.8]} 50... Ra2 {[%clk 0:00:11.7]} 51. c4
{[%clk 0:00:04.6]} 51... f5 {[%clk 0:00:12.1]} 52. Qe3+ {[%clk 0:00:04.2]} 52...
Kf6 {[%clk 0:00:12.1]} 53. d5 {[%clk 0:00:04.4]} 53... e5 {[%clk 0:00:12.3]} 54.
d6 {[%clk 0:00:03.1]} 54... Ke6 {[%clk 0:00:09.5]} 55. c5 {[%clk 0:00:01.8]}
55... Rc2 {[%clk 0:00:09.6]} 56. Qb3+ {[%clk 0:00:02.2]} 1-0